bitfinex-derivatives/quotes_SOLF0:USTF0_20250105
["timestamp","ask_amount","ask_price","bid_price","bid_amount"]
[1736042347764,12.31041046,215.84,215.78,7.21220253]
[1736042347970,127.96632342,215.86,215.83,7.21220253]
[1736042348163,127.96632342,215.86,215.85,7.21220253]
[1736042348569,127.96632342,215.89,215.85,7.21220253]
[1736042349570,159.95790428,215.91,215.85,7.21220253]
[1736042349571,2.3164,215.88,215.85,7.21220253]
[1736042350069,7.21220253,215.93,215.85,7.21220253]
[1736042350274,17.08184695,215.93,215.85,7.21220253]
[1736042350469,3.47636945,215.92,215.85,7.21220253]
[1736042350669,10.68857198,215.93,215.85,7.21220253]
[1736042350874,2.3164,215.88,215.85,7.21220253]
[1736042351075,7.21220253,215.91,215.85,7.21220253]
[1736042351270,10.68857198,215.91,215.85,7.21220253]
[1736042351467,7.21220253,215.91,215.85,7.21220253]
[1736042351872,7.21220253,215.89,215.8,2.8471]
[1736042352068,7.21220253,215.87,215.8,1.3966]
[1736042352469,2.317,215.83,215.8,1.3966]
[1736042353077,2.317,215.83,215.81,7.21220253]
[1736042355982,7.21220253,215.88,215.81,7.21220253]
[1736042356277,2.3167,215.85,215.81,7.21220253]
[1736042357076,2.3169,215.84,215.81,7.21220253]
[1736042357381,7.21220253,215.88,215.8,8.60880253]
[1736042357580,2.317,215.82,215.8,8.60880253]
[1736042364389,2.3169,215.84,215.8,8.60880253]
[1736042365788,2.3169,215.84,215.8,1.3966]
[1736042365989,2.3169,215.84,215.8,8.60880253]
[1736042367495,7.21220253,215.88,215.8,1.3966]
[1736042367496,2.317,215.83,215.8,1.3966]
[1736042367691,2.317,215.83,215.8,8.60880253]
[1736042376696,2.3171,215.82,215.8,8.60880253]
[1736042377898,2.3173,215.8,215.76,8.60390253]
[1736042378899,7.21220253,215.84,215.76,8.60390253]
[1736042379095,2.3174,215.79,215.76,1.3917]
[1736042379294,2.3174,215.79,215.76,8.60390253]
[1736042379896,2.3174,215.79,215.76,1.3917]
[1736042380097,2.3175,215.78,215.75,8.62140253]
[1736042380297,7.21220253,215.82,215.75,8.62140253]
[1736042380599,7.21220253,215.82,215.75,7.21220253]
[1736042382301,7.21220253,215.82,215.73,1.4304]
[1736042382497,7.21220253,215.82,215.74,7.21220253]
[1736042383795,2.3176,215.78,215.74,7.21220253]
[1736042384202,9.79220253,215.84,215.76,7.21220253]
[1736042384399,13.26990506,215.84,215.76,7.21220253]
[1736042384602,2.3173,215.8,215.76,7.21220253]
[1736042385897,18.51388785,215.84,215.76,7.21220253]
[1736042386098,2.3174,215.79,215.76,7.21220253]
[1736042389700,2.3172,215.81,215.76,7.21220253]
[1736042389902,7.21220253,215.84,215.76,7.21220253]
[1736042390102,7.21220253,215.84,215.78,7.21220253]
[1736042391404,2.3173,215.8,215.78,7.21220253]
[1736042394403,2.3173,215.8,215.73,4.2966]
[1736042394605,2.3173,215.8,215.77,7.21220253]
[1736042395900,2.3173,215.8,215.73,4.2966]
[1736042396104,2.3173,215.8,215.77,7.21220253]
[1736042397898,2.3174,215.79,215.77,7.21220253]
[1736042403205,12.22850752,215.83,215.77,7.21220253]
[1736042403206,2.3172,215.81,215.77,7.21220253]
[1736042404504,8.75113035,215.84,215.77,7.21220253]
[1736042404709,3.47726456,215.85,215.81,7.21220253]
[1736042404911,28.42228176,215.89,215.81,7.21220253]
[1736042405205,18.63007923,215.88,215.81,7.21220253]
[1736042405410,3.47726456,215.87,215.81,7.21220253]
[1736042406002,2.3169,215.84,215.81,7.21220253]
[1736042408008,2.3165,215.87,215.83,7.21220253]
[1736042408211,8.75113035,215.88,215.85,7.21220253]
[1736042408512,25.84022576,215.92,215.85,7.21220253]
[1736042408711,18.62802323,215.91,215.85,7.21220253]
[1736042408906,3.47646708,215.9,215.85,7.21220253]
[1736042409912,8.75113035,215.91,215.85,7.21220253]
[1736042410110,8.75113035,215.91,215.87,7.21220253]
[1736042410309,7.21220253,215.92,215.87,7.21220253]
[1736042410711,10.68830355,215.92,215.87,7.21220253]
[1736042411006,19.4394339,215.92,215.87,7.21220253]
[1736042411211,15.96333288,215.92,215.87,7.21220253]
[1736042411414,2.3163,215.9,215.87,7.21220253]
[1736042413517,2.316,215.92,215.89,7.21220253]
[1736042417012,2.3158,215.94,215.89,7.21220253]
[1736042417219,8.74485423,215.96,215.89,7.21220253]
[1736042417514,18.60729269,216.01,215.91,7.21220253]
[1736042417718,7.21220253,215.99,215.91,7.21220253]
[1736042418120,2.3155,215.97,215.93,7.21220253]
[1736042419012,2.3157,215.95,215.91,7.21220253]
[1736042420519,2.58,216.02,215.91,7.21220253]
[1736042420718,7.21220253,215.98,215.91,7.21220253]
[1736042421524,2.3156,215.96,215.91,7.21220253]
[1736042422821,14.7823325,216.02,215.91,7.21220253]
[1736042423025,7.21220253,215.98,215.91,7.21220253]
[1736042423524,7.21220253,215.98,215.89,4.8963]
[1736042423725,7.21220253,215.98,215.91,7.21220253]
[1736042424424,7.21220253,215.98,215.89,4.8963]
[1736042424425,2.3157,215.95,215.89,2.58]
[1736042424625,7.21220253,215.96,215.89,9.79220253]
[1736042425027,2.3158,215.94,215.89,9.79220253]
[1736042425623,2.3158,215.94,215.89,7.21220253]
[1736042426325,7.21220253,215.96,215.89,7.21220253]
[1736042426522,9.52780253,215.96,215.89,7.21220253]
[1736042426726,7.21220253,215.96,215.89,7.21220253]
[1736042427527,2.3157,215.95,215.89,7.21220253]
[1736042428025,2.3162,215.91,215.86,56.18861433]
[1736042428227,2.3162,215.91,215.86,63.40081686]
[1736042428420,7.21220253,215.92,215.86,63.40081686]
[1736042429224,2.3161,215.91,215.86,63.40081686]
[1736042429425,7.21220253,215.94,215.88,7.21220253]
[1736042430532,2.316,215.92,215.88,7.21220253]
[1736042433123,2.58,215.97,215.88,7.21220253]
[1736042433124,9.52810253,215.94,215.88,7.21220253]
[1736042433633,2.3161,215.91,215.86,63.40081686]
[1736042435527,2.316,215.93,215.88,7.21220253]
[1736042441335,2.3157,215.95,215.88,7.21220253]
[1736042441535,2.3157,215.95,215.9,7.21220253]
[1736042448034,9.79220253,215.98,215.9,7.21220253]
[1736042448240,2.3155,215.97,215.9,7.21220253]
[1736042450741,11.06739464,215.97,215.9,7.21220253]
[1736042451247,2.3155,215.97,215.9,7.21220253]
[1736042452444,2.3155,215.97,215.92,7.21220253]
[1736042457642,11.0800989,215.97,215.92,7.21220253]
[1736042458038,2.3155,215.97,215.92,7.21220253]
[1736042460149,13.0025269,215.98,215.92,7.21220253]
[1736042460354,21.77377971,215.98,215.92,7.21220253]
[1736042460649,8.77125281,215.97,215.92,7.21220253]
[1736042461152,9.52750253,215.98,215.92,7.21220253]
[1736042461747,21.7737316,215.98,215.92,7.21220253]
[1736042462050,18.29875534,215.98,215.92,7.21220253]
[1736042462250,9.52750253,215.98,215.92,7.21220253]
[1736042463150,13.00250131,215.98,215.92,7.21220253]
[1736042463551,9.52750253,215.98,215.92,7.21220253]
[1736042464454,13.00247989,215.98,215.92,7.21220253]
[1736042464655,18.29459143,215.98,215.92,7.21220253]
[1736042464849,9.52750253,215.98,215.92,7.21220253]
[1736042465448,13.00248047,215.98,215.92,7.21220253]
[1736042466058,7.21220253,215.98,215.92,7.21220253]
[1736042469166,9.52750253,215.98,215.92,7.21220253]
[1736042474473,9.88155698,216.01,215.92,7.21220253]
[1736042474771,2.3152,216.0,215.94,7.21220253]
[1736042474968,2.3152,216.0,215.96,7.21220253]
[1736042477974,2.3152,216.0,215.94,7.21220253]
[1736042477975,9.52740253,216.0,215.94,7.21220253]
[1736042481078,7.21220253,216.0,215.92,2.9423]
[1736042481271,9.52750253,215.98,215.92,2.9423]
[1736042481474,7.21220253,215.98,215.92,2.9423]
[1736042482577,2.3154,215.97,215.92,2.9423]
[1736042484179,2.3154,215.97,215.92,10.15450253]
[1736042484474,2.3156,215.96,215.92,10.15450253]
[1736042492685,2.3155,215.97,215.92,12.47050253]
[1736042494989,2.3155,215.97,215.92,10.15450253]
[1736042498390,2.3159,215.93,215.86,58.50521433]
[1736042498595,2.3159,215.93,215.86,65.71741686]
[1736042499294,2.3161,215.91,215.86,65.71741686]
[1736042503096,2.3161,215.91,215.88,7.21220253]
[1736042504298,2.3161,215.91,215.86,58.50521433]
[1736042504498,2.3161,215.91,215.88,7.21220253]
[1736042504695,7.21220253,215.94,215.88,7.21220253]
[1736042504899,2.316,215.92,215.88,7.21220253]
[1736042506097,2.3159,215.93,215.88,7.21220253]
[1736042506698,2.3159,215.93,215.86,58.50521433]
[1736042506996,2.3159,215.93,215.88,7.21220253]
[1736042509497,9.52800253,215.94,215.88,7.21220253]
[1736042510294,2.3159,215.93,215.88,7.21220253]
[1736042513492,7.21220253,215.94,215.88,7.21220253]
[1736042513701,2.3158,215.94,215.9,7.21220253]
[1736042520503,2.3158,215.94,215.87,3.7426]
[1736042520813,2.3158,215.94,215.9,7.21220253]
[1736042524620,2.3156,215.96,215.92,7.21220253]
[1736042524916,9.79220253,215.99,215.92,7.21220253]
[1736042525113,2.3154,215.97,215.92,7.21220253]
[1736042525317,9.79220253,215.99,215.92,7.21220253]
[1736042525614,7.21220253,215.97,215.92,7.21220253]
[1736042526519,2.3156,215.96,215.92,7.21220253]
[1736042527420,9.52760253,215.97,215.92,7.21220253]
[1736042533519,2.3154,215.97,215.91,7.21220253]
[1736042533724,9.52760253,215.97,215.91,7.21220253]
[1736042536125,2.3154,215.97,215.91,7.21220253]
[1736042540326,11.0749946,215.97,215.91,7.21220253]
[1736042540925,2.3154,215.97,215.91,7.21220253]
[1736042541428,11.0749946,215.97,215.91,7.21220253]
[1736042541826,2.3154,215.97,215.91,7.21220253]
[1736042542429,11.0749946,215.97,215.91,7.21220253]
[1736042542728,11.0749946,215.97,215.89,2.3162]
[1736042542929,2.3159,215.93,215.88,2.9014]
[1736042545430,2.316,215.92,215.88,2.9014]
[1736042549034,2.316,215.92,215.88,10.11360253]
[1736042550933,2.316,215.92,215.88,2.9014]
[1736042551131,2.316,215.92,215.87,1.4262]
[1736042551132,2.3162,215.9,215.87,1.4262]
[1736042551328,7.21220253,215.9,215.87,1.4262]
[1736042551834,2.3163,215.89,215.87,1.4262]
[1736042553037,2.3163,215.89,215.83,7.21220253]
[1736042559535,2.3163,215.89,215.83,9.52910253]
[1736042562837,7.21220253,215.9,215.83,7.21220253]
[1736042563048,2.3164,215.88,215.83,7.21220253]
[1736042564748,2.3165,215.87,215.83,7.21220253]
[1736042566147,2.3165,215.87,215.81,3.7674]
[1736042566148,2.58,215.87,215.81,1.4502]
[1736042566338,2.317,215.82,215.81,1.4502]
[1736042567243,2.3169,215.84,215.81,1.4502]
[1736042567646,9.52910253,215.84,215.81,1.4502]
[1736042567847,9.52910253,215.84,215.78,7.21220253]
[1736042569650,2.317,215.83,215.78,7.21220253]
[1736042570948,7.21220253,215.84,215.77,2.936]
[1736042571150,7.21220253,215.8,215.73,1.406]
[1736042571348,7.21220253,215.78,215.73,1.406]
[1736042572357,2.3176,215.77,215.73,1.406]
[1736042574052,7.21220253,215.78,215.73,1.406]
[1736042574349,2.3178,215.75,215.69,9.53050253]
[1736042576749,7.21220253,215.76,215.69,7.21220253]
[1736042577053,1.4112,215.86,215.73,7.21220253]
[1736042577253,7.21220253,215.81,215.75,7.21220253]
[1736042577553,7.21220253,215.81,215.7,51.7599468]
[1736042577753,7.21220253,215.81,215.75,7.21220253]
[1736042578653,9.52940253,215.81,215.75,7.21220253]
[1736042584057,51.56,215.94,215.76,2.3177]
[1736042584259,11.98904752,215.93,215.77,7.21220253]
[1736042584553,7.21220253,215.84,215.77,7.21220253]
[1736042585460,7.21220253,215.84,215.78,2.3174]
[1736042589359,9.52900253,215.84,215.78,2.3174]
[1736042589563,7.21220253,215.82,215.76,2.9575]
[1736042589758,9.52960253,215.8,215.76,1.4943]
[1736042590864,7.21220253,215.78,215.71,8.72220253]
[1736042591065,9.52970253,215.78,215.71,11.04030253]
[1736042594473,9.52970253,215.78,215.71,8.72220253]
[1736042594775,9.52970253,215.78,215.72,2.3181]
[1736042595566,2.58,215.81,215.73,7.21220253]
[1736042595762,9.79220253,215.81,215.71,1.51]
[1736042595962,9.79220253,215.81,215.75,7.21220253]
[1736042596174,7.21220253,215.81,215.75,7.21220253]
[1736042596376,148.07730685,215.92,215.77,7.21220253]
[1736042596569,7.21220253,215.84,215.77,7.21220253]
[1736042596770,7.21220253,215.84,215.78,1.4578]
[1736042597468,7.21220253,215.84,215.78,3.7752]
[1736042599075,9.52910253,215.84,215.78,3.7752]
[1736042599275,7.21220253,215.8,215.74,2.3178]
[1736042600873,7.21220253,215.78,215.73,4.898]
[1736042601069,7.21220253,215.78,215.73,2.318]
[1736042602876,2.3178,215.75,215.72,1.5001]
[1736042603170,7.21220253,215.76,215.72,1.5001]
[1736042603576,9.53000253,215.76,215.72,1.5001]
[1736042605078,12.11000253,215.76,215.7,51.7599468]
[1736042605872,7.21220253,215.74,215.7,51.7599468]
[1736042609177,2.3178,215.75,215.7,51.7599468]
[1736042609377,2.58,215.77,215.72,7.21220253]
[1736042612179,4.8976,215.77,215.72,7.21220253]
[1736042612776,2.3176,215.77,215.72,7.21220253]
[1736042614875,2.3176,215.77,215.7,61.29044933]
[1736042615582,7.21220253,215.76,215.7,51.7599468]
[1736042615781,7.21220253,215.74,215.7,51.7599468]
[1736042617185,2.3178,215.75,215.7,51.7599468]
[1736042618178,7.21220253,215.76,215.7,51.7599468]
[1736042618477,7.21220253,215.76,215.7,54.0782468]
[1736042618979,2.58,215.78,215.71,9.53030253]
[1736042619283,9.79220253,215.8,215.73,7.21220253]
[1736042620577,12.10950253,215.8,215.73,9.53020253]
[1736042622984,9.52950253,215.8,215.73,9.53020253]
[1736042624075,7.21220253,215.8,215.73,7.21220253]
[1736042624281,7.21220253,215.78,215.73,7.21220253]
[1736042625985,7.21220253,215.78,215.72,2.3181]
[1736042628683,2.3173,215.81,215.75,9.53000253]
[1736042629987,7.21220253,215.82,215.75,9.53000253]
[1736042630182,2.3173,215.8,215.75,7.21220253]
[1736042631784,2.3173,215.8,215.74,2.3179]
[1736042634084,2.3174,215.79,215.74,2.3179]
[1736042635889,2.3174,215.79,215.74,3.8035]
[1736042636989,2.3174,215.79,215.75,2.3178]
[1736042638888,2.3174,215.79,215.74,1.4856]
[1736042639089,2.3174,215.79,215.75,2.3178]
[1736042640391,2.3175,215.78,215.74,1.4856]
[1736042642493,7.21220253,215.77,215.73,2.3179]
[1736042642796,9.52980253,215.77,215.73,2.3179]
[1736042642993,9.52980253,215.77,215.72,2.3181]
[1736042644195,7.21220253,215.73,215.7,51.7599468]
[1736042644992,7.21220253,215.75,215.7,54.0782468]
[1736042645292,7.21220253,215.75,215.7,51.7599468]
[1736042645492,2.58,215.76,215.7,58.97214933]
[1736042646496,2.58,215.76,215.72,2.3181]
[1736042646694,7.21220253,215.79,215.72,7.21220253]
[1736042648596,9.52960253,215.79,215.73,2.3179]
[1736042651102,7.21220253,215.77,215.73,2.3179]
[1736042651698,7.21220253,215.77,215.7,51.7599468]
[1736042652097,7.21220253,215.75,215.7,51.7599468]
[1736042653506,9.53000253,215.75,215.7,51.7599468]
[1736042655304,2.3178,215.75,215.7,51.7599468]
[1736042656005,7.21220253,215.76,215.7,51.7599468]
[1736042657198,9.52990253,215.76,215.7,51.7599468]
[1736042663507,7.21220253,215.77,215.71,2.3182]
[1736042663708,7.21220253,215.77,215.7,58.97214933]
[1736042664100,4.8975,215.78,215.71,2.3182]
[1736042667402,2.58,215.78,215.71,2.3182]
[1736042667605,2.3176,215.77,215.7,58.97214933]
[1736042668109,8.74344529,215.79,215.72,7.21220253]
[1736042668309,2.58,215.79,215.72,7.21220253]
[1736042669407,2.58,215.79,215.7,51.7599468]
[1736042669609,2.58,215.79,215.71,7.21220253]
[1736042670307,2.3175,215.78,215.72,2.3181]
[1736042681516,2.3175,215.78,215.73,7.21220253]
[1736042684625,9.52970253,215.78,215.73,7.21220253]
[1736042689430,9.52970253,215.78,215.72,2.3181]
[1736042689628,7.21220253,215.78,215.7,58.97214933]
[1736042690030,17.09086099,215.78,215.7,58.97214933]
[1736042690225,8.75512013,215.77,215.7,58.97214933]
[1736042690528,2.3178,215.75,215.7,51.7599468]
[1736042691326,2.318,215.73,215.7,51.7599468]
[1736042695430,7.21220253,215.76,215.7,51.7599468]
[1736042695633,2.3179,215.75,215.7,51.7599468]
[1736042697241,2.3179,215.75,215.69,9.53060253]
[1736042698437,2.3179,215.75,215.69,2.3184]
[1736042698638,2.3179,215.75,215.7,7.21220253]
[1736042700035,2.3179,215.75,215.7,9.53050253]
[1736042700339,2.3179,215.75,215.7,7.21220253]
[1736042706640,7.21220253,215.78,215.7,7.21220253]
[1736042706843,2.3176,215.77,215.72,7.21220253]
[1736042707037,8.752344,215.81,215.72,7.21220253]
[1736042707236,9.79220253,215.8,215.74,7.21220253]
[1736042707544,18.54454653,215.8,215.74,7.21220253]
[1736042708148,9.79220253,215.8,215.74,7.21220253]
[1736042708549,4.8973,215.8,215.74,9.53010253]
[1736042708746,12.10950253,215.8,215.74,9.53010253]
[1736042708947,12.10950253,215.8,215.74,7.21220253]
[1736042709646,20.86184653,215.8,215.74,7.21220253]
[1736042709845,12.10950253,215.8,215.74,7.21220253]
[1736042710442,9.79220253,215.8,215.74,7.21220253]
[1736042710749,2.3174,215.79,215.74,7.21220253]
[1736042716050,2.3178,215.76,215.7,59.64165097]
[1736042716249,7.21220253,215.76,215.7,59.64165097]
[1736042716449,7.21220253,215.76,215.7,52.42944844]
[1736042717352,2.318,215.73,215.7,52.42944844]
[1736042717847,2.3184,215.7,215.65,1.4958]
[1736042718052,2.3184,215.7,215.63,7.21220253]
[1736042718448,7.21220253,215.71,215.63,7.21220253]
[1736042718648,2.3184,215.69,215.63,7.21220253]
[1736042719946,3.47911113,215.74,215.63,7.21220253]
[1736042720146,9.53050253,215.71,215.63,9.53130253]
[1736042720447,7.21220253,215.71,215.64,7.21220253]
[1736042720752,7.21220253,215.71,215.63,2.3191]
[1736042720942,7.21220253,215.71,215.64,7.21220253]
[1736042721448,2.3184,215.7,215.64,7.21220253]
[1736042721750,7.21220253,215.71,215.64,7.21220253]
[1736042723547,9.53050253,215.71,215.64,7.21220253]
[1736042723748,7.21220253,215.71,215.64,7.21220253]
[1736042723949,2.56,215.75,215.66,7.21220253]
[1736042723950,9.53030253,215.73,215.66,7.21220253]
[1736042724951,7.21220253,215.73,215.66,7.21220253]
[1736042725154,2.3181,215.72,215.66,7.21220253]
[1736042730958,2.3182,215.71,215.66,7.21220253]
[1736042731158,9.53040253,215.71,215.66,7.21220253]
[1736042731858,9.53040253,215.71,215.65,2.3188]
[1736042733758,2.3184,215.7,215.64,9.53120253]
[1736042736762,2.3185,215.69,215.64,9.53120253]
[1736042739068,7.21220253,215.71,215.64,7.21220253]
[1736042739366,2.3183,215.7,215.65,2.3189]
[1736042741669,2.3185,215.69,215.64,7.21220253]
[1736042741865,9.53070253,215.69,215.64,7.21220253]
[1736042742466,2.3186,215.68,215.63,2.319]
[1736042746468,2.3186,215.68,215.62,7.21220253]
[1736042746773,8.72834553,215.74,215.66,7.21220253]
[1736042746967,7.21220253,215.75,215.69,7.21220253]
[1736042747370,7.21220253,215.75,215.67,8.60490253]
[1736042748468,2.318,215.73,215.67,10.92350253]
[1736042748969,9.53020253,215.73,215.67,10.92350253]
[1736042750676,7.21220253,215.73,215.67,10.92350253]
[1736042750873,7.21220253,215.71,215.67,1.3927]
[1736042755174,9.53040253,215.71,215.67,1.3927]
[1736042759578,9.53040253,215.71,215.65,2.3189]
[1736042761680,7.21220253,215.69,215.64,2.319]
[1736042772093,7.21220253,215.69,215.65,2.3188]
[1736042782390,8.74763983,215.72,215.65,7.21220253]
[1736042782588,2.56,215.72,215.65,7.21220253]
[1736042782785,2.56,215.74,215.65,7.21220253]
[1736042783090,9.53020253,215.73,215.67,2.3186]
[1736042785894,2.56,215.76,215.67,7.21220253]
[1736042786089,7.21220253,215.75,215.67,7.21220253]
[1736042786391,7.21220253,215.75,215.7,2.3182]
[1736042787589,7.21220253,215.71,215.68,2.3185]
[1736042788694,2.3179,215.74,215.68,2.3185]
[1736042788894,7.21220253,215.72,215.68,2.3185]
[1736042798005,2.3181,215.73,215.68,2.3185]
[1736042801108,2.3181,215.73,215.65,7.21220253]
[1736042801307,2.3183,215.71,215.65,7.21220253]
[1736042802309,2.3183,215.71,215.64,2.56]
[1736042802505,2.3185,215.69,215.62,7.21220253]
[1736042803509,2.3185,215.69,215.63,2.319]
[1736042804602,9.53070253,215.69,215.63,2.319]
[1736042806307,2.3187,215.67,215.62,7.21220253]
[1736042806511,9.53090253,215.67,215.61,2.3192]
[1736042807806,2.3188,215.66,215.61,2.3192]
[1736042811010,2.3187,215.67,215.61,2.3192]
[1736042811208,9.53090253,215.67,215.61,2.3192]
[1736042812214,9.53070253,215.69,215.62,7.21220253]
[1736042813410,9.53070253,215.69,215.64,2.319]
[1736042814713,2.3185,215.69,215.64,2.319]
[1736042814911,9.53070253,215.69,215.64,2.319]
[1736042815313,9.53070253,215.69,215.62,7.21220253]
[1736042815514,9.53070253,215.69,215.63,2.3191]
[1736042818015,9.53090253,215.67,215.61,2.3192]
[1736042818208,7.21220253,215.67,215.6,64.39502968]
[1736042819115,2.3188,215.66,215.6,66.71442968]
[1736042819311,7.21220253,215.65,215.6,64.39502968]
[1736042819511,9.77220253,215.65,215.6,64.39502968]
[1736042820412,2.3192,215.62,215.55,2.3199]
[1736042820612,7.21220253,215.61,215.55,2.3199]
[1736042822417,9.53150253,215.61,215.55,2.3199]
[1736042824416,9.53170253,215.59,215.52,2.3202]
[1736042825014,7.21220253,215.59,215.52,2.3202]
[1736042825319,2.3196,215.58,215.52,2.3202]
[1736042827420,2.3196,215.58,215.53,7.21220253]
[1736042827623,2.3196,215.58,215.53,9.53230253]
[1736042829420,4.8795,215.6,215.54,2.32]
[1736042829715,4.8795,215.6,215.55,7.21220253]
[1736042829919,2.56,215.6,215.55,7.21220253]
[1736042830220,2.56,215.6,215.57,2.3197]
[1736042830620,2.3186,215.68,215.6,2.3194]
[1736042830820,7.21220253,215.66,215.59,7.21220253]
[1736042831222,2.56,215.67,215.61,9.53140253]
[1736042833122,7.21220253,215.66,215.61,9.53140253]
[1736042834620,7.21220253,215.66,215.61,2.3192]
[1736042834821,7.21220253,215.66,215.6,7.21220253]
[1736042835428,9.53100253,215.66,215.6,7.21220253]
[1736042836931,2.56,215.67,215.6,9.53150253]
[1736042837130,9.77220253,215.67,215.6,9.53150253]
[1736042838025,2.3188,215.66,215.6,9.53150253]
[1736042838527,9.53100253,215.66,215.6,9.53150253]
[1736042839326,1.3671,215.71,215.6,7.21220253]
[1736042839525,7.21220253,215.68,215.62,2.3192]
[1736042839931,7.21220253,215.68,215.62,9.53140253]
[1736042839932,9.53070253,215.68,215.62,9.53140253]
[1736042840526,2.56,215.7,215.62,9.53140253]
[1736042840732,9.53060253,215.69,215.62,9.53140253]
[1736042841232,2.3184,215.69,215.62,9.53140253]
[1736042841434,9.53060253,215.69,215.62,9.53140253]
[1736042843234,2.3183,215.71,215.64,9.53120253]
[1736042843539,9.53050253,215.71,215.64,7.21220253]
[1736042844434,9.53050253,215.71,215.65,2.3189]
[1736042846836,7.21220253,215.69,215.63,2.319]
[1736042848439,9.53070253,215.69,215.63,2.319]
[1736042849342,7.21220253,215.69,215.63,2.319]
[1736042849544,2.3186,215.68,215.63,2.319]
[1736042849743,7.21220253,215.67,215.62,2.3192]
[1736042850342,9.53090253,215.67,215.61,7.21220253]
[1736042850548,7.21220253,215.67,215.61,9.53150253]
[1736042851853,8.70508021,215.76,215.66,7.21220253]
[1736042852148,7.21220253,215.76,215.68,7.21220253]
[1736042852342,7.21220253,215.76,215.69,2.3184]
[1736042852550,7.21220253,215.76,215.68,7.21220253]
[1736042852745,7.21220253,215.76,215.68,10.04710253]
[1736042853149,7.21220253,215.76,215.71,2.3182]
[1736042855851,7.21220253,215.76,215.7,7.21220253]
[1736042856449,7.21220253,215.76,215.68,12.36560253]
[1736042856650,7.21220253,215.76,215.68,14.92560253]
[1736042857040,2.3178,215.75,215.68,14.92560253]
[1736042859851,7.21220253,215.74,215.68,12.36560253]
[1736042861450,7.21220253,215.74,215.68,10.04710253]
[1736042861451,2.3181,215.72,215.68,10.04710253]
[1736042867356,2.318,215.74,215.68,10.04710253]
[1736042867552,7.21220253,215.76,215.68,10.04710253]
[1736042868255,7.21220253,215.76,215.7,7.21220253]
[1736042869462,2.3179,215.74,215.7,7.21220253]
[1736042869661,7.21220253,215.81,215.72,7.21220253]
[1736042869861,7.21220253,215.83,215.76,7.21220253]
[1736042870164,2.3173,215.8,215.74,7.21220253]
[1736042870863,2.3173,215.8,215.74,9.53010253]
[1736042872661,2.3173,215.8,215.74,7.21220253]
[1736042873660,2.3175,215.78,215.74,7.21220253]
[1736042873860,9.52970253,215.78,215.71,9.53030253]
[1736042875463,2.3178,215.76,215.71,7.21220253]
[1736042876271,7.21220253,215.77,215.7,61.24527507]
[1736042877567,2.3179,215.74,215.7,61.24527507]
[1736042879467,7.21220253,215.77,215.7,61.24527507]
[1736042879665,2.3178,215.75,215.7,61.24527507]
[1736042881970,2.3177,215.76,215.7,61.24527507]
[1736042882167,2.3177,215.76,215.71,7.21220253]
[1736042882964,7.21220253,215.77,215.71,7.21220253]
[1736042883172,2.3178,215.75,215.71,7.21220253]
[1736042884273,2.3175,215.79,215.73,7.21220253]
[1736042884572,2.56,215.81,215.73,7.21220253]
[1736042885372,2.56,215.81,215.73,9.53020253]
[1736042885373,2.3174,215.8,215.73,9.53020253]
[1736042885964,2.3174,215.79,215.73,9.53020253]
[1736042887373,2.3174,215.79,215.75,7.21220253]
[1736042888573,4.8772,215.81,215.75,7.21220253]
[1736042888873,4.8772,215.81,215.75,9.53000253]
[1736042890467,7.21220253,215.8,215.75,7.21220253]
[1736042890975,2.3176,215.77,215.73,7.21220253]
[1736042891276,7.21220253,215.78,215.71,9.77220253]
[1736042892469,9.52980253,215.78,215.71,12.09040253]
[1736042893169,7.21220253,215.78,215.71,9.77220253]
[1736042893379,2.3177,215.76,215.71,7.21220253]
[1736042894472,7.21220253,215.78,215.71,7.21220253]
[1736042894473,9.52980253,215.78,215.71,7.21220253]
[1736042894778,9.52980253,215.78,215.71,9.53040253]
[1736042895868,2.3176,215.77,215.73,7.21220253]
[1736042898368,7.21220253,215.8,215.73,7.21220253]
[1736042898669,2.3175,215.79,215.73,9.53020253]
[1736042902885,2.3175,215.78,215.73,7.21220253]
[1736042903184,7.21220253,215.8,215.73,7.21220253]
[1736042903378,7.21220253,215.8,215.71,7.21220253]
[1736042903582,2.56,215.81,215.71,7.21220253]
[1736042903778,7.21220253,215.79,215.71,7.21220253]
[1736042904482,2.3177,215.77,215.71,9.53040253]
[1736042906185,2.3177,215.77,215.73,7.21220253]
[1736042908086,2.3179,215.75,215.7,61.24527507]
[1736042908589,2.3179,215.75,215.7,68.4574776]
[1736042911388,7.21220253,215.79,215.7,68.4574776]